[Event "*** Titled Tuesday Blitz"]
[Site "Chess.com"]
[Date "2020.05.26"]
[Round "4"]
[White "VitaliyBernadskiy"]
[Black "Maxim_e2e4"]
[Result "1-0"]
[WhiteElo "2697"]
[BlackElo "2335"]
[TimeControl "180+1"]
[EndTime "10:38:59 PDT"]
[Termination "VitaliyBernadskiy won on time"]

1. Nf3 {[%clk 0:03:00.9]} 1... c5 {[%clk 0:02:56.6]} 2. e4 {[%clk 0:02:58.9]}
2... e6 {[%clk 0:02:56]} 3. d4 {[%clk 0:02:57.3]} 3... cxd4 {[%clk 0:02:56.5]}
4. Nxd4 {[%clk 0:02:58.2]} 4... Nf6 {[%clk 0:02:56.9]} 5. Nc3 {[%clk 0:02:56.7]}
5... Nc6 {[%clk 0:02:56.2]} 6. a3 {[%clk 0:02:54.2]} 6... d5 {[%clk 0:02:42.9]}
7. Bb5 {[%clk 0:02:53.1]} 7... Bd7 {[%clk 0:02:39.7]} 8. exd5 {[%clk 0:02:52.3]}
8... exd5 {[%clk 0:02:36.1]} 9. O-O {[%clk 0:02:50.8]} 9... Be7 {[%clk
0:02:34.3]} 10. Re1 {[%clk 0:02:50.3]} 10... O-O {[%clk 0:02:33.5]} 11. h3
{[%clk 0:02:44.8]} 11... a6 {[%clk 0:02:14.5]} 12. Ba4 {[%clk 0:02:41.4]} 12...
Bc5 {[%clk 0:01:56.6]} 13. Be3 {[%clk 0:02:37]} 13... Qb6 {[%clk 0:01:33.2]} 14.
Bxc6 {[%clk 0:02:35.7]} 14... Bxc6 {[%clk 0:01:28.9]} 15. b4 {[%clk 0:02:33]}
15... Bxd4 {[%clk 0:01:24.8]} 16. Bxd4 {[%clk 0:02:33.9]} 16... Qd8 {[%clk
0:01:24.5]} 17. Bxf6 {[%clk 0:02:31.7]} 17... Qxf6 {[%clk 0:01:23.3]} 18. Nxd5
{[%clk 0:02:31.8]} 18... Bxd5 {[%clk 0:01:17.8]} 19. Qxd5 {[%clk 0:02:32.7]}
19... Rac8 {[%clk 0:01:15.9]} 20. c4 {[%clk 0:02:24.2]} 20... Rfd8 {[%clk
0:01:09.7]} 21. Qxb7 {[%clk 0:02:08.1]} 21... Rxc4 {[%clk 0:01:08.8]} 22. Rad1
{[%clk 0:02:07.6]} 22... Rxd1 {[%clk 0:00:59.6]} 23. Rxd1 {[%clk 0:02:08.5]}
23... g6 {[%clk 0:00:58.3]} 24. g3 {[%clk 0:01:44.1]} 24... Rc2 {[%clk
0:00:54.4]} 25. Qa7 {[%clk 0:01:42.1]} 25... Ra2 {[%clk 0:00:40.8]} 26. Qe3
{[%clk 0:01:24.7]} 26... Kg7 {[%clk 0:00:36]} 27. Rc1 {[%clk 0:01:11.3]} 27...
h5 {[%clk 0:00:27.8]} 28. h4 {[%clk 0:01:10.8]} 28... Kh7 {[%clk 0:00:23.2]} 29.
Rc7 {[%clk 0:01:03.9]} 29... Kg7 {[%clk 0:00:20.6]} 30. Kg2 {[%clk 0:01:02.4]}
30... Kh7 {[%clk 0:00:18.2]} 31. Rc4 {[%clk 0:00:53]} 31... Kg7 {[%clk
0:00:15.7]} 32. Rf4 {[%clk 0:00:50.8]} 32... Qc6+ {[%clk 0:00:15.2]} 33. Kh2
{[%clk 0:00:45]} 33... Qd5 {[%clk 0:00:15.3]} 34. Qc3+ {[%clk 0:00:42.4]} 34...
Kh7 {[%clk 0:00:14.5]} 35. Qf3 {[%clk 0:00:37.7]} 35... Qxf3 {[%clk 0:00:11.7]}
36. Rxf3 {[%clk 0:00:38.6]} 36... Kg7 {[%clk 0:00:11.2]} 37. Kg2 {[%clk
0:00:39]} 37... f5 {[%clk 0:00:08.9]} 38. Rc3 {[%clk 0:00:39.1]} 38... Kf7
{[%clk 0:00:06.6]} 39. Rc7+ {[%clk 0:00:29.4]} 39... Kf8 {[%clk 0:00:06.4]} 40.
Rc6 {[%clk 0:00:29.1]} 40... Rxa3 {[%clk 0:00:04.3]} 41. Rxg6 {[%clk 0:00:29.6]}
41... Ke7 {[%clk 0:00:04.1]} 42. Rh6 {[%clk 0:00:27.8]} 42... Ra4 {[%clk
0:00:03.6]} 43. Rxh5 {[%clk 0:00:27.6]} 43... Kf6 {[%clk 0:00:03.7]} 44. Rh6+
{[%clk 0:00:27.9]} 44... Ke5 {[%clk 0:00:03]} 45. Rb6 {[%clk 0:00:28.8]} 45...
Kd5 {[%clk 0:00:01.7]} 46. h5 {[%clk 0:00:28.5]} 1-0

[Event "*** Titled Tuesday Blitz"]
[Site "Chess.com"]
[Date "2020.05.26"]
[Round "4"]
[White "RubensCezila"]
[Black "Lunow"]
[Result "1-0"]
[WhiteElo "2467"]
[BlackElo "2169"]
[TimeControl "180+1"]
[EndTime "10:39:00 PDT"]
[Termination "RubensCezila won on time"]

1. c4 {[%clk 0:03:00.9]} 1... c5 {[%clk 0:02:54]} 2. Nc3 {[%clk 0:03:00.7]} 2...
Nc6 {[%clk 0:02:53.2]} 3. g3 {[%clk 0:02:58.8]} 3... g6 {[%clk 0:02:52.6]} 4. h4
{[%clk 0:02:56.4]} 4... Bg7 {[%clk 0:02:53.5]} 5. h5 {[%clk 0:02:56.1]} 5... g5
{[%clk 0:02:48.6]} 6. Bg2 {[%clk 0:02:49.7]} 6... h6 {[%clk 0:02:46.5]} 7. d3
{[%clk 0:02:41.1]} 7... e6 {[%clk 0:02:41]} 8. f4 {[%clk 0:02:37.3]} 8... Nge7
{[%clk 0:02:23.8]} 9. fxg5 {[%clk 0:02:33.8]} 9... Nf5 {[%clk 0:02:23.3]} 10. g6
{[%clk 0:02:12.2]} 10... fxg6 {[%clk 0:02:17.6]} 11. g4 {[%clk 0:01:40.5]} 11...
Nh4 {[%clk 0:01:56.9]} 12. Be4 {[%clk 0:01:40.6]} 12... O-O {[%clk 0:01:53.3]}
13. Nf3 {[%clk 0:01:40.5]} 13... Nxf3+ {[%clk 0:01:43.2]} 14. exf3 {[%clk
0:01:40.3]} 14... g5 {[%clk 0:01:41.5]} 15. O-O {[%clk 0:01:29.4]} 15... Ne7
{[%clk 0:01:37.3]} 16. f4 {[%clk 0:01:26.4]} 16... d5 {[%clk 0:01:33.3]} 17. Bg2
{[%clk 0:01:23]} 17... gxf4 {[%clk 0:01:26.5]} 18. Bxf4 {[%clk 0:01:21.9]} 18...
e5 {[%clk 0:01:21.7]} 19. Bg3 {[%clk 0:00:58.6]} 19... dxc4 {[%clk 0:01:18.3]}
20. Rxf8+ {[%clk 0:00:53.5]} 20... Bxf8 {[%clk 0:00:55.5]} 21. Bxe5 {[%clk
0:00:29.7]} 21... Qxd3 {[%clk 0:00:50.2]} 22. Qxd3 {[%clk 0:00:23.2]} 22... cxd3
{[%clk 0:00:51.1]} 23. Bf3 {[%clk 0:00:20.6]} 23... c4 {[%clk 0:00:40.4]} 24. b3
{[%clk 0:00:19.4]} 24... Be6 {[%clk 0:00:36.4]} 25. Bxb7 {[%clk 0:00:17.4]}
25... Rd8 {[%clk 0:00:36]} 26. bxc4 {[%clk 0:00:16]} 26... Bxg4 {[%clk 0:00:30]}
27. Nd5 {[%clk 0:00:13.9]} 27... Nxd5 {[%clk 0:00:26.5]} 28. cxd5 {[%clk
0:00:10]} 28... d2 {[%clk 0:00:25.5]} 29. Kf2 {[%clk 0:00:08.5]} 29... d1=Q
{[%clk 0:00:24.3]} 30. Rxd1 {[%clk 0:00:08.7]} 30... Bxd1 {[%clk 0:00:21.4]} 31.
Ke3 {[%clk 0:00:08.8]} 31... Bc5+ {[%clk 0:00:17.4]} 32. Ke4 {[%clk 0:00:08.7]}
32... Bc2+ {[%clk 0:00:15.8]} 33. Kf4 {[%clk 0:00:06.9]} 33... Bd6 {[%clk
0:00:07.7]} 34. Bxd6 {[%clk 0:00:06.3]} 34... Rxd6 {[%clk 0:00:07.5]} 35. Ke5
{[%clk 0:00:07.2]} 35... Rb6 {[%clk 0:00:06.2]} 36. Bc6 {[%clk 0:00:05.7]} 36...
Kf7 {[%clk 0:00:05.5]} 37. Kd6 {[%clk 0:00:05.7]} 1-0

[Event "*** Titled Tuesday Blitz"]
[Site "Chess.com"]
[Date "2020.05.26"]
[Round "4"]
[White "tteshan"]
[Black "binbin239"]
[Result "0-1"]
[WhiteElo "2180"]
[BlackElo "2403"]
[TimeControl "180+1"]
[EndTime "10:39:00 PDT"]
[Termination "binbin239 won by resignation"]

1. e4 {[%clk 0:03:00.9]} 1... c5 {[%clk 0:02:58.5]} 2. c3 {[%clk 0:03:00.3]}
2... d5 {[%clk 0:02:57.7]} 3. exd5 {[%clk 0:03:00.6]} 3... Qxd5 {[%clk
0:02:57.9]} 4. d4 {[%clk 0:02:59.3]} 4... cxd4 {[%clk 0:02:56.8]} 5. cxd4 {[%clk
0:03:00.2]} 5... Nc6 {[%clk 0:02:57.3]} 6. Nf3 {[%clk 0:02:59.6]} 6... e6 {[%clk
0:02:54.3]} 7. Nc3 {[%clk 0:02:59.4]} 7... Bb4 {[%clk 0:02:51.4]} 8. Bd3 {[%clk
0:02:59.7]} 8... Nf6 {[%clk 0:02:48.4]} 9. O-O {[%clk 0:02:59.8]} 9... Qd8
{[%clk 0:02:43.4]} 10. a3 {[%clk 0:02:58.3]} 10... Bd6 {[%clk 0:02:42.4]} 11.
Be3 {[%clk 0:02:56.4]} 11... O-O {[%clk 0:02:41.9]} 12. Re1 {[%clk 0:02:55.7]}
12... b6 {[%clk 0:02:39.6]} 13. Qe2 {[%clk 0:02:55.7]} 13... Bb7 {[%clk
0:02:28.5]} 14. Rad1 {[%clk 0:02:55.3]} 14... Ne7 {[%clk 0:02:26.2]} 15. Bb1
{[%clk 0:02:53.5]} 15... Ned5 {[%clk 0:02:25.2]} 16. Bg5 {[%clk 0:02:28.5]}
16... h6 {[%clk 0:02:20.5]} 17. Bh4 {[%clk 0:02:25.4]} 17... Nf4 {[%clk
0:02:10.3]} 18. Qc2 {[%clk 0:02:22.1]} 18... Ng6 {[%clk 0:02:09.4]} 19. Bg3
{[%clk 0:02:00.9]} 19... Rc8 {[%clk 0:01:57.6]} 20. Ba2 {[%clk 0:01:56.6]} 20...
Bxg3 {[%clk 0:01:55.8]} 21. hxg3 {[%clk 0:01:55.3]} 21... Nd5 {[%clk 0:01:54.3]}
22. Qd3 {[%clk 0:01:49.1]} 22... Nxc3 {[%clk 0:01:43.1]} 23. bxc3 {[%clk
0:01:50]} 23... Qd6 {[%clk 0:01:41.8]} 24. Bxe6 {[%clk 0:01:32]} 24... fxe6
{[%clk 0:01:29.8]} 25. Qxg6 {[%clk 0:01:31.2]} 25... Rf6 {[%clk 0:01:29.4]} 26.
Qd3 {[%clk 0:01:25.3]} 26... Qxa3 {[%clk 0:01:27.8]} 27. Rc1 {[%clk 0:01:20.1]}
27... Bd5 {[%clk 0:01:12.2]} 28. Ne5 {[%clk 0:01:18.1]} 28... Qd6 {[%clk
0:00:59.2]} 29. c4 {[%clk 0:01:14.4]} 29... Bb7 {[%clk 0:00:58.7]} 30. Ra1
{[%clk 0:01:09.1]} 30... a5 {[%clk 0:00:53.1]} 31. Qe3 {[%clk 0:01:04.5]} 31...
Rd8 {[%clk 0:00:53.1]} 32. Red1 {[%clk 0:00:55.1]} 32... Rdf8 {[%clk 0:00:51.3]}
33. Ra2 {[%clk 0:00:53.4]} 33... Bc6 {[%clk 0:00:40.4]} 34. d5 {[%clk 0:00:47]}
34... exd5 {[%clk 0:00:39.9]} 35. cxd5 {[%clk 0:00:46.4]} 35... Ba8 {[%clk
0:00:39.3]} 36. Nc4 {[%clk 0:00:42.3]} 36... Qb4 {[%clk 0:00:35]} 37. Rc2 {[%clk
0:00:39.2]} 37... Rc8 {[%clk 0:00:25.3]} 38. Rdc1 {[%clk 0:00:34.5]} 38... Bxd5
{[%clk 0:00:25]} 39. Rb2 {[%clk 0:00:24.6]} 39... Qc5 {[%clk 0:00:25.1]} 40.
Qxc5 {[%clk 0:00:20.2]} 40... Rxc5 {[%clk 0:00:24.7]} 41. Rbc2 {[%clk
0:00:18.3]} 41... Bxc4 {[%clk 0:00:20.5]} 42. Rxc4 {[%clk 0:00:19.2]} 42... Rxc4
{[%clk 0:00:20.8]} 43. Rxc4 {[%clk 0:00:20.1]} 43... b5 {[%clk 0:00:21.4]} 44.
Rc8+ {[%clk 0:00:20.4]} 44... Rf8 {[%clk 0:00:20.6]} 45. Kf1 {[%clk 0:00:21.3]}
45... Rxc8 {[%clk 0:00:20.7]} 0-1

[Event "*** Titled Tuesday Blitz"]
[Site "Chess.com"]
[Date "2020.05.26"]
[Round "4"]
[White "RaunakSadhwani2005"]
[Black "Dinamo81"]
[Result "1-0"]
[WhiteElo "2833"]
[BlackElo "2624"]
[TimeControl "180+1"]
[EndTime "10:39:02 PDT"]
[Termination "RaunakSadhwani2005 won by resignation"]

1. e4 {[%clk 0:03:00.9]} 1... e6 {[%clk 0:02:58.7]} 2. d4 {[%clk 0:02:56.9]}
2... d5 {[%clk 0:02:58]} 3. Nc3 {[%clk 0:02:57.8]} 3... Bb4 {[%clk 0:02:56.8]}
4. exd5 {[%clk 0:02:57.9]} 4... exd5 {[%clk 0:02:56.1]} 5. Bd3 {[%clk
0:02:58.3]} 5... Nf6 {[%clk 0:02:52.2]} 6. a3 {[%clk 0:02:52.1]} 6... Bxc3+
{[%clk 0:02:28.5]} 7. bxc3 {[%clk 0:02:52.2]} 7... O-O {[%clk 0:02:28.8]} 8. Ne2
{[%clk 0:02:51.8]} 8... c5 {[%clk 0:02:22.2]} 9. dxc5 {[%clk 0:02:40.2]} 9...
Nbd7 {[%clk 0:02:18]} 10. Be3 {[%clk 0:02:39.1]} 10... Qe7 {[%clk 0:02:12.8]}
11. O-O {[%clk 0:02:38.4]} 11... Nxc5 {[%clk 0:02:11.9]} 12. Ng3 {[%clk
0:02:38.2]} 12... Bg4 {[%clk 0:02:05]} 13. Qd2 {[%clk 0:02:26]} 13... Nce4
{[%clk 0:01:54.1]} 14. Qe1 {[%clk 0:02:23.7]} 14... Nxg3 {[%clk 0:01:45.9]} 15.
hxg3 {[%clk 0:02:24.6]} 15... Rfe8 {[%clk 0:01:44.1]} 16. Bd4 {[%clk 0:02:22.2]}
16... Qd7 {[%clk 0:01:40.2]} 17. Qc1 {[%clk 0:02:08.9]} 17... Bf5 {[%clk
0:01:08.4]} 18. Qg5 {[%clk 0:01:21.7]} 18... Bxd3 {[%clk 0:01:06.4]} 19. cxd3
{[%clk 0:01:22.2]} 19... h6 {[%clk 0:01:06.7]} 20. Qd2 {[%clk 0:01:13.5]} 20...
Qf5 {[%clk 0:01:04.2]} 21. f3 {[%clk 0:01:10.1]} 21... Re6 {[%clk 0:01:02.1]}
22. g4 {[%clk 0:01:09.3]} 22... Qg5 {[%clk 0:01:00.7]} 23. Qxg5 {[%clk
0:01:08.5]} 23... hxg5 {[%clk 0:01:01.6]} 24. Rfe1 {[%clk 0:01:08.6]} 24... Rae8
{[%clk 0:00:49.1]} 25. Rxe6 {[%clk 0:01:07.9]} 25... Rxe6 {[%clk 0:00:50]} 26.
Bxa7 {[%clk 0:00:52.3]} 26... b6 {[%clk 0:00:42.8]} 27. a4 {[%clk 0:00:51.3]}
27... Nd7 {[%clk 0:00:43.2]} 28. a5 {[%clk 0:00:51.3]} 28... bxa5 {[%clk
0:00:41.1]} 29. Rxa5 {[%clk 0:00:52.2]} 29... Rd6 {[%clk 0:00:34.6]} 30. Bd4
{[%clk 0:00:52.5]} 30... f6 {[%clk 0:00:33.6]} 31. Kf2 {[%clk 0:00:52.3]} 31...
Kf7 {[%clk 0:00:33.5]} 32. Ke3 {[%clk 0:00:51.3]} 32... Kg6 {[%clk 0:00:33.3]}
33. c4 {[%clk 0:00:48]} 33... dxc4 {[%clk 0:00:31.9]} 34. dxc4 {[%clk
0:00:48.9]} 34... Nf8 {[%clk 0:00:27.8]} 35. c5 {[%clk 0:00:43]} 35... Re6+
{[%clk 0:00:27.7]} 36. Kd3 {[%clk 0:00:42.3]} 36... Nd7 {[%clk 0:00:27.5]} 37.
Ra7 {[%clk 0:00:37.8]} 37... Nb8 {[%clk 0:00:25.6]} 38. Kc4 {[%clk 0:00:25.7]}
38... Nc6 {[%clk 0:00:26.1]} 39. Kd5 {[%clk 0:00:19.1]} 39... Nxd4 {[%clk
0:00:16.2]} 40. Kxd4 {[%clk 0:00:19.4]} 40... Re2 {[%clk 0:00:16.9]} 41. Ra3
{[%clk 0:00:19.5]} 41... Rxg2 {[%clk 0:00:16]} 42. c6 {[%clk 0:00:19.7]} 42...
Rd2+ {[%clk 0:00:16.5]} 43. Rd3 {[%clk 0:00:19.5]} 43... Rc2 {[%clk 0:00:16.9]}
44. Rc3 {[%clk 0:00:19.5]} 44... Rd2+ {[%clk 0:00:17.5]} 45. Kc5 {[%clk
0:00:20]} 45... Rd8 {[%clk 0:00:17.3]} 46. c7 {[%clk 0:00:20.5]} 46... Rc8
{[%clk 0:00:15.1]} 47. Kd6 {[%clk 0:00:21]} 47... f5 {[%clk 0:00:15.2]} 48. Kd7
{[%clk 0:00:21.5]} 48... Rxc7+ {[%clk 0:00:15.4]} 49. Kxc7 {[%clk 0:00:21.5]}
49... fxg4 {[%clk 0:00:15.7]} 50. fxg4 {[%clk 0:00:22.4]} 1-0

[Event "*** Titled Tuesday Blitz"]
[Site "Chess.com"]
[Date "2020.05.26"]
[Round "4"]
[White "2346PL"]
[Black "ManuDavid2910"]
[Result "1/2-1/2"]
[WhiteElo "2508"]
[BlackElo "2694"]
[TimeControl "180+1"]
[EndTime "10:39:04 PDT"]
[Termination "Game drawn by repetition"]

1. d4 {[%clk 0:03:00.9]} 1... Nf6 {[%clk 0:02:59.6]} 2. Bg5 {[%clk 0:03:00.9]}
2... e6 {[%clk 0:03:00.5]} 3. Nf3 {[%clk 0:03:00.7]} 3... d5 {[%clk 0:03:00.5]}
4. e3 {[%clk 0:03:01.2]} 4... c5 {[%clk 0:03:01]} 5. c3 {[%clk 0:03:00.7]} 5...
Nc6 {[%clk 0:03:01.6]} 6. Bd3 {[%clk 0:03:00.9]} 6... Be7 {[%clk 0:03:02.1]} 7.
Nbd2 {[%clk 0:03:01.1]} 7... Nd7 {[%clk 0:03:02.6]} 8. Bxe7 {[%clk 0:02:57.7]}
8... Qxe7 {[%clk 0:03:03.5]} 9. e4 {[%clk 0:02:57.9]} 9... cxd4 {[%clk
0:03:01.2]} 10. cxd4 {[%clk 0:02:57.5]} 10... Qb4 {[%clk 0:02:55.8]} 11. O-O
{[%clk 0:02:55.6]} 11... O-O {[%clk 0:02:53.3]} 12. exd5 {[%clk 0:02:54.1]}
12... exd5 {[%clk 0:02:54.2]} 13. Nb3 {[%clk 0:02:36.8]} 13... Nf6 {[%clk
0:02:53.1]} 14. a3 {[%clk 0:02:36]} 14... Qb6 {[%clk 0:02:52.7]} 15. h3 {[%clk
0:02:28.3]} 15... h6 {[%clk 0:02:46.3]} 16. Rc1 {[%clk 0:02:27.4]} 16... Rd8
{[%clk 0:02:35.7]} 17. Re1 {[%clk 0:02:26.9]} 17... Ne4 {[%clk 0:02:33.2]} 18.
Nc5 {[%clk 0:02:14.7]} 18... Bf5 {[%clk 0:02:15.5]} 19. b4 {[%clk 0:02:09]}
19... a5 {[%clk 0:02:12.2]} 20. b5 {[%clk 0:02:04.6]} 20... Nxd4 {[%clk
0:02:11.9]} 21. Nxd4 {[%clk 0:02:03.8]} 21... Bg6 {[%clk 0:02:10.4]} 22. Bxe4
{[%clk 0:01:32.4]} 22... dxe4 {[%clk 0:02:11.3]} 23. Qa4 {[%clk 0:01:32.3]}
23... Rd5 {[%clk 0:02:07.1]} 24. Ndb3 {[%clk 0:01:25.4]} 24... f5 {[%clk
0:02:03.5]} 25. Red1 {[%clk 0:01:18.1]} 25... Bf7 {[%clk 0:01:59.4]} 26. Rxd5
{[%clk 0:00:55.2]} 26... Bxd5 {[%clk 0:02:00.3]} 27. Qd4 {[%clk 0:00:55.6]}
27... Rd8 {[%clk 0:01:49]} 28. Rd1 {[%clk 0:00:55.2]} 28... Qxb5 {[%clk
0:01:45.5]} 29. a4 {[%clk 0:00:51]} 29... Qe2 {[%clk 0:01:32.4]} 30. Ne6 {[%clk
0:00:46.7]} 30... Rd7 {[%clk 0:01:31.2]} 31. Nbc5 {[%clk 0:00:46.9]} 31... Bb3
{[%clk 0:01:22.8]} 32. Qxd7 {[%clk 0:00:46.1]} 32... Qxd1+ {[%clk 0:01:21.7]}
33. Qxd1 {[%clk 0:00:47]} 33... Bxd1 {[%clk 0:01:22.6]} 34. Nxb7 {[%clk
0:00:46.8]} 34... Bxa4 {[%clk 0:01:22.2]} 35. Nxa5 {[%clk 0:00:46.1]} 35... Kf7
{[%clk 0:01:21.7]} 36. Nd4 {[%clk 0:00:45.7]} 36... Kf6 {[%clk 0:01:21.6]} 37.
g3 {[%clk 0:00:43.9]} 37... g5 {[%clk 0:01:21.1]} 38. Nc4 {[%clk 0:00:42.6]}
38... Be8 {[%clk 0:01:17.8]} 39. Nd2 {[%clk 0:00:40.6]} 39... Ke5 {[%clk
0:01:16.4]} 40. Ne2 {[%clk 0:00:39]} 40... Bb5 {[%clk 0:01:15.6]} 41. Nc3 {[%clk
0:00:38.7]} 41... Bd7 {[%clk 0:01:14.9]} 42. Kf1 {[%clk 0:00:36.1]} 42... Kd4
{[%clk 0:01:14.1]} 43. Ne2+ {[%clk 0:00:35.2]} 43... Kd3 {[%clk 0:01:14]} 44.
Ke1 {[%clk 0:00:35.7]} 44... e3 {[%clk 0:01:12.3]} 45. Nf1 {[%clk 0:00:32.9]}
45... exf2+ {[%clk 0:01:10]} 46. Kxf2 {[%clk 0:00:33.8]} 46... Ke4 {[%clk
0:01:04.4]} 47. Nd2+ {[%clk 0:00:33.1]} 47... Ke5 {[%clk 0:01:04.3]} 48. Nf3+
{[%clk 0:00:33.1]} 48... Kf6 {[%clk 0:01:03.9]} 49. Nc3 {[%clk 0:00:30.7]} 49...
h5 {[%clk 0:00:58.1]} 50. h4 {[%clk 0:00:31]} 50... gxh4 {[%clk 0:00:55.1]} 51.
gxh4 {[%clk 0:00:30.8]} 51... f4 {[%clk 0:00:48.8]} 52. Nd5+ {[%clk 0:00:27.7]}
52... Kf5 {[%clk 0:00:48.5]} 53. Ne7+ {[%clk 0:00:22.4]} 53... Kg4 {[%clk
0:00:48.3]} 54. Ng6 {[%clk 0:00:20.3]} 54... Bc8 {[%clk 0:00:42]} 55. Kg2 {[%clk
0:00:19.6]} 55... Bb7 {[%clk 0:00:39.2]} 56. Ne5+ {[%clk 0:00:19.4]} 56... Kf5
{[%clk 0:00:39.4]} 57. Kf2 {[%clk 0:00:19.2]} 57... Ba8 {[%clk 0:00:37]} 58. Kg2
{[%clk 0:00:19]} 58... Bb7 {[%clk 0:00:36.9]} 59. Kf2 {[%clk 0:00:19.2]} 59...
Ba8 {[%clk 0:00:36.8]} 60. Ke2 {[%clk 0:00:18.8]} 60... Bb7 {[%clk 0:00:35.7]}
61. Kf2 {[%clk 0:00:19]} 1/2-1/2

[Event "*** Titled Tuesday Blitz"]
[Site "Chess.com"]
[Date "2020.05.26"]
[Round "4"]
[White "Konek-Gorbunok"]
[Black "PlotnikovPavel"]
[Result "1-0"]
[WhiteElo "2238"]
[BlackElo "2452"]
[TimeControl "180+1"]
[EndTime "10:39:04 PDT"]
[Termination "Konek-Gorbunok won by resignation"]

1. d4 {[%clk 0:03:00.9]} 1... e6 {[%clk 0:00:26.1]} 2. Nf3 {[%clk 0:03:01.8]}
2... Nf6 {[%clk 0:00:26]} 3. g3 {[%clk 0:03:01.5]} 3... Be7 {[%clk 0:00:26.3]}
4. Bg2 {[%clk 0:03:01.6]} 4... O-O {[%clk 0:00:27.2]} 5. O-O {[%clk 0:03:02.1]}
5... d5 {[%clk 0:00:28.1]} 6. c4 {[%clk 0:03:02.1]} 6... c6 {[%clk 0:00:29]} 7.
Nc3 {[%clk 0:03:01.3]} 7... Nbd7 {[%clk 0:00:29.5]} 8. Nd2 {[%clk 0:03:01.2]}
8... b6 {[%clk 0:00:30]} 9. e4 {[%clk 0:03:00.7]} 9... dxe4 {[%clk 0:00:30.9]}
10. Ndxe4 {[%clk 0:03:00.5]} 10... Bb7 {[%clk 0:00:31.5]} 11. Be3 {[%clk
0:02:59.6]} 11... Nxe4 {[%clk 0:00:31.6]} 12. Nxe4 {[%clk 0:02:59.6]} 12... Nf6
{[%clk 0:00:31.9]} 13. Nc3 {[%clk 0:02:59.8]} 13... Qc7 {[%clk 0:00:31.3]} 14.
h3 {[%clk 0:02:59.3]} 14... c5 {[%clk 0:00:30.8]} 15. Bf4 {[%clk 0:02:40]} 15...
Qc8 {[%clk 0:00:30.2]} 16. d5 {[%clk 0:02:32]} 16... exd5 {[%clk 0:00:30.4]} 17.
Nxd5 {[%clk 0:02:29.7]} 17... Nxd5 {[%clk 0:00:29.7]} 18. cxd5 {[%clk
0:02:22.1]} 18... Rd8 {[%clk 0:00:28.9]} 19. Qe2 {[%clk 0:01:58.6]} 19... Bf6
{[%clk 0:00:27.1]} 20. Rfd1 {[%clk 0:01:58.1]} 20... Bd4 {[%clk 0:00:25]} 21.
Rac1 {[%clk 0:01:46]} 21... Qd7 {[%clk 0:00:20.7]} 22. Be3 {[%clk 0:01:39.7]}
22... Re8 {[%clk 0:00:19.2]} 23. Qd2 {[%clk 0:01:25.5]} 23... Bxe3 {[%clk
0:00:18.8]} 24. fxe3 {[%clk 0:01:25.2]} 24... Rad8 {[%clk 0:00:19.1]} 25. e4
{[%clk 0:01:23.5]} 25... Qd6 {[%clk 0:00:19.1]} 26. Qf4 {[%clk 0:01:20.5]} 26...
Re5 {[%clk 0:00:18.5]} 27. Rf1 {[%clk 0:01:04.1]} 27... f6 {[%clk 0:00:18.6]}
28. Kh2 {[%clk 0:00:55.5]} 28... Rde8 {[%clk 0:00:18.6]} 29. Rf2 {[%clk
0:00:42]} 29... Ba6 {[%clk 0:00:18.3]} 30. Rd2 {[%clk 0:00:33.7]} 30... Rd8
{[%clk 0:00:16.8]} 31. b3 {[%clk 0:00:32.8]} 31... Qe7 {[%clk 0:00:16.9]} 32.
Rc3 {[%clk 0:00:27.5]} 32... Rd6 {[%clk 0:00:16.9]} 33. Rdc2 {[%clk 0:00:25.4]}
33... h6 {[%clk 0:00:14.4]} 34. b4 {[%clk 0:00:25]} 34... cxb4 {[%clk
0:00:14.2]} 35. Rc7 {[%clk 0:00:23.9]} 35... Rd7 {[%clk 0:00:14.4]} 36. Rxd7
{[%clk 0:00:21.8]} 36... Qxd7 {[%clk 0:00:15.3]} 37. Qc1 {[%clk 0:00:21]} 37...
Kh7 {[%clk 0:00:14.7]} 38. Rc7 {[%clk 0:00:20.4]} 38... Qd6 {[%clk 0:00:14.9]}
39. Rxa7 {[%clk 0:00:20.1]} 39... Rg5 {[%clk 0:00:15.1]} 40. Qf4 {[%clk
0:00:17.8]} 40... Qc5 {[%clk 0:00:10.3]} 41. Rxa6 {[%clk 0:00:16.9]} 41... Qc2
{[%clk 0:00:10.3]} 42. Ra7 {[%clk 0:00:14.1]} 42... Qxa2 {[%clk 0:00:09.5]} 43.
Rxa2 {[%clk 0:00:12.9]} 1-0

[Event "*** Titled Tuesday Blitz"]
[Site "Chess.com"]
[Date "2020.05.26"]
[Round "4"]
[White "Playgood28"]
[Black "elamier"]
[Result "1/2-1/2"]
[WhiteElo "2295"]
[BlackElo "2102"]
[TimeControl "180+1"]
[EndTime "10:39:05 PDT"]
[Termination "Game drawn by repetition"]

1. d4 {[%clk 0:03:00.9]} 1... d5 {[%clk 0:02:59.1]} 2. c4 {[%clk 0:03:00.5]}
2... c6 {[%clk 0:02:59.2]} 3. e3 {[%clk 0:02:59.6]} 3... Nf6 {[%clk 0:02:58.1]}
4. Nc3 {[%clk 0:02:59.3]} 4... a6 {[%clk 0:02:58]} 5. Nf3 {[%clk 0:02:56.6]}
5... Bf5 {[%clk 0:02:56.9]} 6. b3 {[%clk 0:02:54.9]} 6... e6 {[%clk 0:02:55]} 7.
Be2 {[%clk 0:02:53.1]} 7... Bb4 {[%clk 0:02:53]} 8. Bd2 {[%clk 0:02:52.2]} 8...
O-O {[%clk 0:02:37.2]} 9. a3 {[%clk 0:02:44.4]} 9... Bd6 {[%clk 0:02:34.7]} 10.
O-O {[%clk 0:02:42.3]} 10... Nbd7 {[%clk 0:02:32.1]} 11. b4 {[%clk 0:02:39.2]}
11... b5 {[%clk 0:02:30.1]} 12. c5 {[%clk 0:02:27.3]} 12... Bc7 {[%clk 0:02:29]}
13. a4 {[%clk 0:02:26.4]} 13... e5 {[%clk 0:02:26.2]} 14. dxe5 {[%clk
0:02:03.9]} 14... Nxe5 {[%clk 0:02:24.3]} 15. Nxe5 {[%clk 0:01:55.5]} 15... Bxe5
{[%clk 0:02:22.9]} 16. Ra3 {[%clk 0:01:27.4]} 16... Re8 {[%clk 0:02:14.6]} 17.
Re1 {[%clk 0:01:22.4]} 17... Ne4 {[%clk 0:02:06.5]} 18. Nxe4 {[%clk 0:01:21.2]}
18... Bxe4 {[%clk 0:02:00.5]} 19. Bc3 {[%clk 0:01:17.2]} 19... Qg5 {[%clk
0:01:36.2]} 20. Bf1 {[%clk 0:01:09.1]} 20... Bc7 {[%clk 0:01:11.7]} 21. f4
{[%clk 0:00:52.2]} 21... Qg6 {[%clk 0:01:06.6]} 22. Qa1 {[%clk 0:00:47.8]} 22...
Rac8 {[%clk 0:00:57.5]} 23. axb5 {[%clk 0:00:46.8]} 23... axb5 {[%clk
0:00:57.2]} 24. Ra7 {[%clk 0:00:46.4]} 24... Bd8 {[%clk 0:00:41.6]} 25. g3
{[%clk 0:00:38.3]} 25... h5 {[%clk 0:00:39.5]} 26. Bg2 {[%clk 0:00:33.3]} 26...
h4 {[%clk 0:00:28.8]} 27. Bxe4 {[%clk 0:00:31]} 27... Qxe4 {[%clk 0:00:25.4]}
28. Qb2 {[%clk 0:00:20.9]} 28... h3 {[%clk 0:00:15.1]} 29. Qf2 {[%clk
0:00:19.5]} 29... Be7 {[%clk 0:00:11.9]} 30. Bd4 {[%clk 0:00:18.9]} 30... Bf8
{[%clk 0:00:11.5]} 31. Ra6 {[%clk 0:00:17]} 31... g6 {[%clk 0:00:09.6]} 32. Rf1
{[%clk 0:00:16.5]} 32... Bg7 {[%clk 0:00:08.9]} 33. Ra7 {[%clk 0:00:13.8]} 33...
Bxd4 {[%clk 0:00:06.4]} 34. exd4 {[%clk 0:00:13.7]} 34... Qd3 {[%clk 0:00:06.6]}
35. f5 {[%clk 0:00:13.1]} 35... Re2 {[%clk 0:00:04.9]} 36. Qf4 {[%clk
0:00:08.8]} 36... Rg2+ {[%clk 0:00:03.6]} 37. Kh1 {[%clk 0:00:08.4]} 37... Qe2
{[%clk 0:00:03.4]} 38. Qf3 {[%clk 0:00:05.8]} 38... Rxh2+ {[%clk 0:00:02.5]} 39.
Kg1 {[%clk 0:00:05.8]} 39... Rg2+ {[%clk 0:00:02]} 40. Kh1 {[%clk 0:00:05.9]}
40... Rh2+ {[%clk 0:00:01.5]} 41. Kg1 {[%clk 0:00:05.8]} 41... Rg2+ {[%clk
0:00:01.9]} 42. Kh1 {[%clk 0:00:06]} 42... Rh2+ {[%clk 0:00:02.3]} 1/2-1/2